fUST/lending_fUST_20240801
["ID","MTS","AMOUNT","RATE_DAILY","PERIOD"]
[333799754,1722520244341,-516.89597913,0.00013972,2]
[333799755,1722520244353,-527.44,0.00013972,2]
[333799756,1722520244364,-500.0,0.00013972,2]
[333799757,1722520244374,-1853.48,0.00013972,2]
[333799758,1722520244383,-500.0,0.00013972,2]
[333799759,1722520244393,-500.0,0.00013972,2]
[333799760,1722520244403,-500.0,0.00013972,2]
[333799761,1722520244412,-657.02,0.00013972,2]
[333799762,1722520244422,-896.66,0.00013972,2]
[333799763,1722520244432,-500.0,0.00013972,2]
[333799764,1722520244442,-2467.4,0.00013972,2]
[333799765,1722520244458,-500.0,0.00013972,2]
[333799766,1722520244596,-500.0,0.00013972,2]
[333799767,1722520244607,-500.0,0.00013972,2]
[333799768,1722520244618,-586.79,0.00013972,2]
[333799769,1722520244627,-500.0,0.00013972,2]
[333799770,1722520244637,-500.0,0.00013972,2]
[333799771,1722520244646,-500.0,0.00013972,2]
[333799772,1722520244656,-500.0,0.00013972,2]
[333799773,1722520244666,-500.0,0.00013972,2]
[333799774,1722520244675,-500.0,0.00013972,2]
[333799775,1722520244686,-500.0,0.00013972,2]
[333799776,1722520244695,-650.84,0.00013972,2]
[333799777,1722520244710,-836.8,0.00013972,2]
[333799778,1722520244720,-500.0,0.00013972,2]
[333799779,1722520244729,-500.0,0.00013972,2]
[333799780,1722520244739,-882.16,0.00013972,2]
[333799781,1722520244748,-516.76,0.00013972,2]
[333799782,1722520244757,-500.0,0.00013972,2]
[333799783,1722520244768,-694.61,0.00013972,2]
[333799784,1722520244777,-500.0,0.00013972,2]
[333799785,1722520244787,-741.17,0.00013972,2]
[333799786,1722520244796,-500.0,0.00013972,2]
[333799787,1722520244806,-500.0,0.00013972,2]
[333799788,1722520244815,-2449.34,0.00013972,2]
[333799789,1722520244825,-500.0,0.00013972,2]
[333799790,1722520244834,-500.0,0.00013972,2]
[333799791,1722520244844,-1580.82,0.00013972,2]
[333799792,1722520244854,-500.0,0.00013972,2]
[333799793,1722520244863,-640.23,0.00013972,2]
[333799794,1722520244873,-500.0,0.00013972,2]
[333799795,1722520244883,-600.31,0.00013972,2]
[333799796,1722520244892,-500.0,0.00013972,2]
[333799797,1722520244902,-500.0,0.00013972,2]
[333799798,1722520244911,-1207.36,0.00013972,2]
[333799799,1722520244921,-500.0,0.00013972,2]
[333799800,1722520244931,-500.0,0.00013972,2]
[333799801,1722520244941,-500.0,0.00013972,2]
[333799802,1722520244953,-500.0,0.00013972,2]
[333799803,1722520244963,-500.0,0.00013972,2]
[333799804,1722520244972,-500.0,0.00013972,2]
[333799805,1722520244982,-1891.0,0.00013972,2]
[333799806,1722520244991,-500.0,0.00013972,2]
[333799807,1722520245001,-165.87130571,0.00013972,2]
[333799808,1722520245011,-500.0,0.00013972,2]
[333799809,1722520245020,-2780.47,0.00013972,2]
[333799810,1722520245030,-1274.95,0.00013972,2]
[333799811,1722520245040,-1000.0,0.00014,14]
[333799812,1722520245049,-1410.0,0.00014106,2]
[333799813,1722520245058,-29269.8200153,0.00014236,2]
[333799814,1722520245068,-500.0,0.00014246,2]
[333799815,1722520245078,-500.0,0.00014246,2]
[333799816,1722520245087,-500.0,0.00014246,2]
[333799817,1722520245097,-500.0,0.00014246,2]
[333799818,1722520245107,-500.0,0.00014246,2]
[333799819,1722520245117,-500.0,0.00014246,2]
[333799820,1722520245127,-500.0,0.00014246,2]
[333799821,1722520245136,-500.0,0.00014246,2]
[333799822,1722520245146,-500.0,0.00014246,2]
[333799823,1722520245155,-500.0,0.00014246,2]
[333799824,1722520245165,-500.0,0.00014246,2]
[333799825,1722520245174,-500.0,0.00014246,2]
[333799826,1722520245183,-612.83,0.00014246,2]
[333799827,1722520245193,-500.0,0.00014246,2]
[333799828,1722520245205,-500.0,0.00014246,2]
[333799829,1722520245215,-500.0,0.00014246,2]
[333799830,1722520245223,-630.63,0.00014246,2]
[333799831,1722520245232,-500.0,0.00014246,2]
[333799832,1722520245241,-527.44,0.00014246,2]
[333799833,1722520245251,-500.0,0.00014246,2]
[333799834,1722520245260,-1853.48,0.00014246,2]
[333799835,1722520245270,-500.0,0.00014246,2]
[333799836,1722520245279,-500.0,0.00014246,2]
[333799837,1722520245290,-500.0,0.00014246,2]
[333799838,1722520245300,-657.02,0.00014246,2]
[333799839,1722520245310,-896.66,0.00014246,2]
[333799840,1722520245319,-500.0,0.00014246,2]
[333799841,1722520245329,-2467.4,0.00014246,2]
[333799842,1722520245339,-500.0,0.00014246,2]
[333799843,1722520245353,-500.0,0.00014246,2]
[333799844,1722520245363,-500.0,0.00014246,2]
[333799845,1722520245372,-586.79,0.00014246,2]
[333799846,1722520245382,-500.0,0.00014246,2]
[333799847,1722520245392,-500.0,0.00014246,2]
[333799848,1722520245402,-500.0,0.00014246,2]
[333799849,1722520245411,-500.0,0.00014246,2]
[333799850,1722520245421,-500.0,0.00014246,2]
[333799851,1722520245431,-500.0,0.00014246,2]
[333799852,1722520245440,-500.0,0.00014246,2]
[333799853,1722520245451,-650.84,0.00014246,2]
[333799854,1722520245461,-836.8,0.00014246,2]
[333799855,1722520245471,-500.0,0.00014246,2]
[333799856,1722520245481,-417.0704801,0.00014246,2]
[333799857,1722520245491,-882.16,0.00014246,2]
[333799858,1722520245500,-516.76,0.00014246,2]
[333799859,1722520245510,-500.0,0.00014246,2]
[333799860,1722520245520,-694.61,0.00014246,2]
[333799861,1722520245529,-500.0,0.00014246,2]
[333799862,1722520245538,-741.17,0.00014246,2]
[333799863,1722520245548,-500.0,0.00014246,2]
[333799864,1722520245558,-500.0,0.00014246,2]
[333799865,1722520245568,-2449.34,0.00014246,2]
[333799866,1722520245578,-500.0,0.00014246,2]
[333799867,1722520245588,-500.0,0.00014246,2]
[333799868,1722520245598,-1580.82,0.00014246,2]
[333799869,1722520245607,-500.0,0.00014246,2]
[333799870,1722520245617,-640.23,0.00014246,2]
[333799871,1722520245626,-500.0,0.00014246,2]
[333799872,1722520245636,-600.31,0.00014246,2]
[333799873,1722520245645,-500.0,0.00014246,2]
[333799874,1722520245655,-500.0,0.00014246,2]
[333799875,1722520245665,-1207.36,0.00014246,2]
[333799876,1722520245674,-500.0,0.00014246,2]
[333799877,1722520245683,-500.0,0.00014246,2]
[333799878,1722520245692,-500.0,0.00014246,2]
[333799879,1722520245704,-500.0,0.00014246,2]
[333799880,1722520245713,-500.0,0.00014246,2]
[333799881,1722520245724,-500.0,0.00014246,2]
[333799882,1722520245733,-1891.0,0.00014246,2]
[333799883,1722520245742,-500.0,0.00014246,2]
[333799884,1722520245752,-500.0,0.00014246,2]
[333799885,1722520245761,-2780.47,0.00014246,2]
[333799886,1722520245771,-1274.95,0.00014246,2]
[333799887,1722520245780,-712.5,0.00014247,2]
[333799888,1722520245789,-200.0,0.00014418,2]
[333799889,1722520245799,-29269.8200153,0.0001451,2]
[333799890,1722520245809,-500.0,0.0001452,2]
[333799891,1722520245818,-500.0,0.0001452,2]
[333799892,1722520245828,-500.0,0.0001452,2]
[333799893,1722520245837,-500.0,0.0001452,2]
[333799894,1722520245847,-500.0,0.0001452,2]
[333799895,1722520245856,-500.0,0.0001452,2]
[333799896,1722520245866,-500.0,0.0001452,2]
[333799897,1722520245875,-500.0,0.0001452,2]
[333799898,1722520245884,-500.0,0.0001452,2]
[333799899,1722520245894,-500.0,0.0001452,2]
[333799900,1722520245904,-500.0,0.0001452,2]
[333799901,1722520245914,-500.0,0.0001452,2]
[333799902,1722520245923,-612.83,0.0001452,2]
[333799903,1722520245933,-500.0,0.0001452,2]
[333799905,1722520245942,-500.0,0.0001452,2]
[333799906,1722520245954,-500.0,0.0001452,2]
[333799907,1722520245963,-630.63,0.0001452,2]
[333799908,1722520245973,-500.0,0.0001452,2]
[333799909,1722520245982,-527.44,0.0001452,2]
[333799910,1722520245994,-500.0,0.0001452,2]
[333799911,1722520246003,-1853.48,0.0001452,2]
[333799912,1722520246012,-500.0,0.0001452,2]
[333799913,1722520246021,-500.0,0.0001452,2]
[333799914,1722520246030,-500.0,0.0001452,2]
[333799915,1722520246039,-657.02,0.0001452,2]
[333799916,1722520246048,-896.66,0.0001452,2]
[333799917,1722520246057,-500.0,0.0001452,2]
[333799918,1722520246066,-2467.4,0.0001452,2]
[333799920,1722520246076,-500.0,0.0001452,2]
[333799921,1722520246086,-500.0,0.0001452,2]
[333799922,1722520246095,-500.0,0.0001452,2]
[333799923,1722520246105,-586.79,0.0001452,2]
[333799924,1722520246114,-500.0,0.0001452,2]
[333799925,1722520246124,-500.0,0.0001452,2]
[333799926,1722520246133,-240.67743168,0.0001452,2]
[333799927,1722520246143,-500.0,0.0001452,2]
[333799928,1722520246153,-500.0,0.0001452,2]
[333799929,1722520246163,-500.0,0.0001452,2]
[333799930,1722520246172,-379.89575676,0.0001452,2]
[333799931,1722520246182,-650.84,0.0001452,2]
[333799932,1722520246192,-836.8,0.0001452,2]
[333799933,1722520246204,-500.0,0.0001452,2]
[333799934,1722520246213,-882.16,0.0001452,2]
[333799935,1722520246223,-516.76,0.0001452,2]
[333799936,1722520246231,-500.0,0.0001452,2]
[333799937,1722520246241,-694.61,0.0001452,2]
[333799938,1722520246251,-500.0,0.0001452,2]
[333799939,1722520246261,-741.17,0.0001452,2]
[333799940,1722520246270,-500.0,0.0001452,2]
[333799941,1722520246280,-462.63608921,0.0001452,2]
[333799942,1722520246290,-2449.34,0.0001452,2]
[333799943,1722520246300,-500.0,0.0001452,2]
[333799945,1722520246310,-500.0,0.0001452,2]
[333799947,1722520246319,-1580.82,0.0001452,2]
[333799949,1722520246329,-500.0,0.0001452,2]
[333799950,1722520246339,-640.23,0.0001452,2]
[333799952,1722520246350,-500.0,0.0001452,2]
[333799954,1722520246360,-600.31,0.0001452,2]
[333799955,1722520246370,-500.0,0.0001452,2]
[333799956,1722520246380,-500.0,0.0001452,2]
[333799957,1722520246391,-1207.36,0.0001452,2]
[333799958,1722520246400,-500.0,0.0001452,2]
[333799959,1722520246410,-500.0,0.0001452,2]
[333799960,1722520246419,-500.0,0.0001452,2]
[333799961,1722520246431,-500.0,0.0001452,2]
[333799962,1722520246441,-500.0,0.0001452,2]
[333799964,1722520246452,-500.0,0.0001452,2]
[333799966,1722520246462,-1891.0,0.0001452,2]
[333799968,1722520246472,-500.0,0.0001452,2]
[333799969,1722520246482,-500.0,0.0001452,2]
[333799970,1722520246492,-2780.47,0.0001452,2]
[333799971,1722520246502,-1274.95,0.0001452,2]
[333799972,1722520246511,-24955.41116017,0.0001458,2]
[333799973,1722520246561,-4314.40885513,0.0001458,2]
[333799974,1722520246572,-189.0991158,0.00014589,2]
[333799976,1722520246582,-500.0,0.00014589,2]
[333799978,1722520246592,-500.0,0.00014589,2]
[333799980,1722520246602,-500.0,0.00014589,2]
[333799982,1722520246612,-500.0,0.00014589,2]
[333799984,1722520246622,-500.0,0.00014589,2]
[333799986,1722520246633,-500.0,0.00014589,2]
[333799988,1722520246643,-500.0,0.00014589,2]
[333799990,1722520246654,-500.0,0.00014589,2]
[333799992,1722520246663,-500.0,0.00014589,2]
[333799994,1722520246673,-472.79482059,0.00014589,2]
[333799996,1722520246683,-1172.22451112,0.0001459,2]
[333800081,1722520293586,273.37336231,9.9e-05,2]
[333800082,1722520301721,273.37336231,9.9e-05,2]
[333800083,1722520310535,273.37336231,9.9e-05,2]
[333800084,1722520338981,1492.55194249,9.9e-05,2]
[333800085,1722520346477,1492.55194249,9.9e-05,2]
[333800086,1722520355606,520.25685212,9.9e-05,2]
[333800087,1722520357763,194.26693667,9.999e-05,2]
[333800088,1722520364837,12136.91760449,9.9e-05,2]
[333800089,1722520379310,200.05722375,0.0001,2]
[333800090,1722520386215,257.16409311,9.999e-05,2]
[333800092,1722520407896,399.69013725,9.999e-05,2]
[333800094,1722520453993,1492.55194249,9.999e-05,2]
[333800095,1722520492397,1000.2926189,0.000244,120]
[333800096,1722520850509,1658.11896662,0.00027,120]
[333800097,1722520893568,151.0,0.00027,120]
[333800116,1722521028965,250.28853223,9.999e-05,2]
[333800402,1722521090996,1492.55194249,9.999e-05,2]
[333800600,1722521102427,203.0,0.00027,120]
[333801585,1722521166700,24900.0,9.62e-05,2]
[333802864,1722521224548,1492.55194249,9.62e-05,2]
[333804613,1722521310545,224.13908649,9.999e-05,2]
[333804788,1722521321968,1492.55194249,9.62e-05,2]
[333804824,1722521362163,-778.5136062,0.00010056,2]
[333804838,1722521425579,76.83712408,0.00010056,2]
[333804939,1722521438640,-1390.76533243,0.00010056,2]
[333804940,1722521438650,-1492.55194249,0.00010056,2]
[333804941,1722521438659,-250.0,0.00010376,2]
[333804942,1722521438668,-250.0,0.00010405,2]
[333804943,1722521438678,-250.0,0.00010433,2]
[333804944,1722521438687,-250.0,0.00010462,2]
[333804945,1722521438696,-250.0,0.0001049,2]
[333804946,1722521438705,-250.0,0.00010519,2]
[333804947,1722521438715,-250.0,0.00010547,2]
[333804948,1722521438723,-250.0,0.00010576,2]
[333804949,1722521438734,-250.0,0.00010604,2]
[333804950,1722521438743,-250.0,0.00010633,2]
[333804951,1722521438752,-250.0,0.00010661,2]
[333804952,1722521438761,-250.0,0.0001069,2]
[333804953,1722521438772,-250.0,0.00010718,2]
[333804954,1722521438783,-250.0,0.00010747,2]
[333804955,1722521438791,-250.0,0.00010775,2]
[333804956,1722521438802,-250.0,0.00010803,2]
[333804957,1722521438812,-250.0,0.00010832,2]
[333804958,1722521438821,-206.75998887,0.00010859,2]
[333804959,1722521438831,-250.0,0.0001086,2]
[333804960,1722521438840,-250.0,0.00010889,2]
[333804961,1722521438850,-250.0,0.00010917,2]
[333804962,1722521438860,-300.0,0.00010958,2]
[333804963,1722521438869,-300.0,0.00010958,2]
[333804964,1722521438879,-166.666666,0.00010959,2]
[333804965,1722521438888,-371.76,0.00010959,2]
[333804966,1722521438899,-1304.12,0.00010959,2]
[333804967,1722521438908,-1086.76,0.00010959,2]
[333804968,1722521438917,-905.64,0.00010959,2]
[333804969,1722521438927,-1000.0,0.00011,11]
[333804970,1722521438936,-225.16,0.00011,2]
[333804971,1722521438945,-166.666666,0.00011279,2]
[333804972,1722521438954,-166.666666,0.000116,2]
[333804973,1722521438963,-200.0,0.000118,2]
[333804974,1722521438972,-166.666666,0.00011921,2]
[333804975,1722521438982,-199342.036325,0.0001199,2]
[333804976,1722521438992,-168867.59663765,0.00012,2]
[333804977,1722521439002,-420.0,0.00012042,2]
[333804978,1722521439011,-420.0,0.00012054,2]
[333804979,1722521439020,-166.666666,0.00012241,2]
[333804980,1722521439030,-14973.35039706,0.00012299,5]
[333804981,1722521439039,-175.066307,0.00012986,2]
[333804982,1722521439049,-1000.0,0.00013,13]
[333804983,1722521439058,-66447.3454416,0.00013088,2]
[333804984,1722521439068,-35489.12730637,0.00013098,5]
[333804985,1722521439077,-11572.25310117,0.00013099,2]
[333804986,1722521439087,-400.0,0.0001317,2]
[333804987,1722521439096,-587.0,0.00013259,2]
[333804988,1722521439106,-2000.0,0.00013398,2]
[333804989,1722521439115,-588.2238741,0.00013442,2]
[333804990,1722521439124,-11572.25310117,0.00013498,2]
[333804991,1722521439134,-66447.3454416,0.00013588,2]
[333804992,1722521439143,-2385.61933514,0.00013598,2]
[333804993,1722521439152,-151.0,0.00013598,2]
[333804994,1722521439161,-151.0,0.00013598,2]
[333804995,1722521439170,-151.0,0.00013598,2]
[333804996,1722521439179,-151.0,0.00013598,2]
[333804997,1722521439189,-151.0,0.00013598,2]
[333804998,1722521439198,-151.0,0.00013598,2]
[333804999,1722521439207,-151.0,0.00013598,2]
[333805000,1722521439216,-151.0,0.00013688,2]
[333805001,1722521439226,-151.0,0.00013688,2]
[333805002,1722521439235,-151.0,0.00013688,2]
[333805003,1722521439245,-151.0,0.00013688,2]
[333805004,1722521439255,-151.0,0.00013688,2]
[333805005,1722521439264,-151.0,0.00013688,2]
[333805006,1722521439274,-151.0,0.00013688,2]
[333805007,1722521439283,-151.0,0.00013688,2]
[333805008,1722521439293,-151.0,0.00013688,2]
[333805009,1722521439303,-151.0,0.00013688,2]
[333805010,1722521439312,-160.335764,0.00013688,2]
[333805011,1722521439322,-160.335764,0.00013688,2]
[333805012,1722521439331,-151.0,0.00013688,2]
[333805013,1722521439341,-151.0,0.00013688,2]
[333805014,1722521439351,-500.0,0.00013698,2]
[333805015,1722521439361,-500.0,0.00013698,2]
[333805016,1722521439371,-500.0,0.00013698,2]
[333805017,1722521439380,-500.0,0.00013698,2]
[333805018,1722521439389,-500.0,0.00013698,2]
[333805019,1722521439399,-500.0,0.00013698,2]
[333805020,1722521439408,-500.0,0.00013698,2]
[333805021,1722521439418,-500.0,0.00013698,2]
[333805022,1722521439427,-500.0,0.00013698,2]
[333805023,1722521439437,-584.14428914,0.00013698,2]
[333805024,1722521439446,-500.0,0.00013698,2]
[333805025,1722521439455,-500.0,0.00013698,2]
[333805026,1722521439465,-500.0,0.00013698,2]
[333805027,1722521439474,-500.0,0.00013698,2]
[333805028,1722521439483,-500.0,0.00013698,2]
[333805029,1722521439495,-500.0,0.00013698,2]
[333805030,1722521439504,-500.0,0.00013698,2]
[333805031,1722521439514,-500.0,0.00013698,2]
[333805032,1722521439523,-500.0,0.00013698,2]
[333805033,1722521439532,-558.9745894,0.00013698,2]
[333805034,1722521439542,-500.74070639,0.00013698,2]
[333805035,1722521439552,-500.0,0.00013698,2]
[333805036,1722521439561,-500.0,0.00013698,2]
[333805037,1722521439571,-500.0,0.00013698,2]
[333805038,1722521439581,-500.0,0.00013698,2]
[333805039,1722521439590,-500.0,0.00013698,2]
[333805040,1722521439599,-500.0,0.00013698,2]
[333805041,1722521439609,-500.0,0.00013698,2]
[333805042,1722521439727,-500.0,0.00013698,2]
[333805043,1722521439738,-500.0,0.00013698,2]
[333805044,1722521439747,-500.0,0.00013698,2]
[333805045,1722521439758,-500.0,0.00013698,2]
[333805047,1722521439770,-500.0,0.00013698,2]
[333805048,1722521439781,-500.0,0.00013698,2]
[333805050,1722521439790,-500.0,0.00013698,2]
[333805051,1722521439800,-200.81443293,0.00013698,2]
[333805053,1722521439809,-500.0,0.00013698,2]
[333805055,1722521439818,-500.0,0.00013698,2]
[333805057,1722521439828,-500.0,0.00013698,2]
[333805058,1722521439837,-500.0,0.00013698,2]
[333805059,1722521439847,-500.0,0.00013698,2]
[333805061,1722521439857,-500.0,0.00013698,2]
[333805062,1722521439866,-500.0,0.00013698,2]
[333805064,1722521439876,-500.0,0.00013698,2]
[333805066,1722521439885,-510.69,0.00013698,2]
[333805068,1722521439896,-500.0,0.00013698,2]
[333805069,1722521439906,-500.0,0.00013698,2]
[333805071,1722521439916,-512.18768842,0.00013698,2]
[333805073,1722521439926,-500.0,0.00013698,2]
[333805074,1722521439935,-500.0,0.00013698,2]
[333805075,1722521439944,-500.73041792,0.00013698,2]
[333805076,1722521439953,-583.26,0.00013698,2]
[333805077,1722521439962,-500.0,0.00013698,2]
[333805078,1722521439972,-500.0,0.00013698,2]
[333805079,1722521439981,-500.0,0.00013698,2]
[333805080,1722521439992,-500.0,0.00013698,2]
[333805081,1722521440001,-500.0,0.00013698,2]
[333805082,1722521440010,-500.0,0.00013698,2]
[333805083,1722521440019,-500.0,0.00013698,2]
[333805084,1722521440028,-500.0,0.00013698,2]
[333805085,1722521440038,-500.0,0.00013698,2]
[333805086,1722521440047,-574.09764681,0.00013698,2]
[333805087,1722521440057,-500.0,0.00013698,2]
[333805088,1722521440066,-500.0,0.00013698,2]
[333805089,1722521440075,-500.0,0.00013698,2]
[333805090,1722521440085,-500.0,0.00013698,2]
[333805091,1722521440095,-500.0,0.00013698,2]
[333805092,1722521440104,-508.86450463,0.00013698,2]
[333805093,1722521440114,-368.20451606,0.00013698,2]
[333805094,1722521440123,-500.0,0.00013698,2]
[333805095,1722521440133,-500.0,0.00013698,2]
[333805096,1722521440142,-500.0,0.00013698,2]
[333805097,1722521440152,-500.0,0.00013698,2]
[333805098,1722521440161,-2317.06,0.00013698,2]
[333805099,1722521440170,-1062.46,0.00013698,2]
[333805100,1722521440179,-500.0,0.00013698,2]
[333805101,1722521440189,-500.0,0.00013698,2]
[333805102,1722521440198,-500.0,0.00013698,2]
[333805103,1722521440207,-595.72560786,0.00013698,2]
[333805104,1722521440217,-1544.57,0.00013698,2]
[333805105,1722521440226,-500.0,0.00013698,2]
[333805106,1722521440238,-523.71,0.00013698,2]
[333805109,1722521440247,-500.0,0.00013698,2]
[333805111,1722521440258,-500.0,0.00013698,2]
[333805113,1722521440268,-547.52,0.00013698,2]
[333805114,1722521440277,-500.0,0.00013698,2]
[333805116,1722521440286,-500.0,0.00013698,2]
[333805117,1722521440295,-500.0,0.00013698,2]
[333805118,1722521440305,-510.83937489,0.00013698,2]
[333805119,1722521440315,-500.0,0.00013698,2]
[333805120,1722521440324,-500.0,0.00013698,2]
[333805121,1722521440334,-747.22,0.00013698,2]
[333805122,1722521440343,-2056.17,0.00013698,2]
[333805123,1722521440353,-500.0,0.00013698,2]
[333805124,1722521440362,-500.0,0.00013698,2]
[333805125,1722521440372,-500.0,0.00013698,2]
[333805126,1722521440381,-500.0,0.00013698,2]
[333805127,1722521440391,-542.37,0.00013698,2]
[333805128,1722521440401,-617.65,0.00013698,2]
[333805129,1722521440411,-500.0,0.00013698,2]
[333805130,1722521440420,-500.0,0.00013698,2]
[333805132,1722521440430,-500.0,0.00013698,2]
[333805134,1722521440439,-697.33,0.00013698,2]
[333805136,1722521440449,-269.00706004,0.00013698,2]
[333805138,1722521440458,-500.0,0.00013698,2]
[333805140,1722521440468,-500.0,0.00013698,2]
[333805141,1722521440478,-578.84,0.00013698,2]
[333805142,1722521440488,-500.0,0.00013698,2]
[333805143,1722521440498,-500.0,0.00013698,2]
[333805144,1722521440507,-500.0,0.00013698,2]
[333805145,1722521440517,-2041.12,0.00013698,2]
[333805146,1722521440527,-500.0,0.00013698,2]
[333805147,1722521440536,-500.0,0.00013698,2]
[333805148,1722521440545,-500.0,0.00013698,2]
[333805149,1722521440555,-500.0,0.00013698,2]
[333805150,1722521440564,-500.0,0.00013698,2]
[333805151,1722521440573,-1317.35,0.00013698,2]
[333805152,1722521440583,-500.0,0.00013698,2]
[333805154,1722521440592,-735.14,0.00013698,2]
[333805155,1722521440601,-272.03462921,0.00013698,2]
[333805157,1722521440611,-500.0,0.00013698,2]
[333805159,1722521440621,-500.0,0.00013698,2]
[333805160,1722521440631,-500.0,0.00013698,2]
[333805161,1722521440641,-500.0,0.00013698,2]
[333805162,1722521440650,-500.0,0.00013698,2]
[333805163,1722521440659,-500.0,0.00013698,2]
[333805164,1722521440669,-521.09,0.00013698,2]
[333805166,1722521440678,-500.0,0.00013698,2]
[333805167,1722521440687,-500.0,0.00013698,2]
[333805168,1722521440696,-151.0,0.00013698,2]
[333805169,1722521440705,-500.0,0.00013698,2]
[333805170,1722521440714,-500.0,0.00013698,2]
[333805171,1722521440724,-500.0,0.00013698,2]
[333805172,1722521440734,-151.0,0.00013698,2]
[333805173,1722521440744,-533.53,0.00013698,2]
[333805174,1722521440753,-500.0,0.00013698,2]
[333805175,1722521440763,-500.0,0.00013698,2]
[333805176,1722521440777,-252.48856,0.00013698,2]
[333805177,1722521440787,-500.0,0.00013698,2]
[333805178,1722521440796,-500.0,0.00013698,2]
[333805179,1722521440805,-500.0,0.00013698,2]
[333805180,1722521440815,-1006.13,0.00013698,2]
[333805182,1722521440825,-500.0,0.00013698,2]
[333805184,1722521440834,-500.0,0.00013698,2]
[333805186,1722521440844,-297.29779,0.00013698,2]
[333805187,1722521440855,-151.0,0.00013698,2]
[333805189,1722521440865,-500.0,0.00013698,2]
[333805190,1722521440874,-1575.83,0.00013698,2]
[333805191,1722521440883,-500.0,0.00013698,2]
[333805192,1722521440893,-500.0,0.00013698,2]
[333805193,1722521440903,-151.0,0.00013698,2]
[333805194,1722521440912,-502.58801939,0.00013698,2]
[333805195,1722521440926,-1410.0,0.00013741,2]
[333805196,1722521440938,-151.0,0.00013962,2]
[333805197,1722521440951,-281.594813,0.00013962,2]
[333805198,1722521440963,-500.0,0.00013972,2]
[333805199,1722521440975,-500.0,0.00013972,2]
[333805200,1722521440987,-500.0,0.00013972,2]
[333805201,1722521440998,-500.0,0.00013972,2]
[333805202,1722521441008,-500.0,0.00013972,2]
[333805203,1722521441022,-500.0,0.00013972,2]
[333805204,1722521441033,-500.0,0.00013972,2]
[333805205,1722521441045,-500.0,0.00013972,2]
[333805206,1722521441056,-500.0,0.00013972,2]
[333805207,1722521441068,-500.0,0.00013972,2]
[333805208,1722521441080,-500.0,0.00013972,2]
[333805209,1722521441092,-500.0,0.00013972,2]
[333805210,1722521441103,-500.0,0.00013972,2]
[333805211,1722521441114,-500.0,0.00013972,2]
[333805212,1722521441127,-500.0,0.00013972,2]
[333805213,1722521441140,-500.0,0.00013972,2]
[333805214,1722521441152,-500.0,0.00013972,2]
[333805215,1722521441163,-510.69,0.00013972,2]
[333805216,1722521441175,-583.26,0.00013972,2]
[333805217,1722521441187,-500.0,0.00013972,2]
[333805218,1722521441198,-500.0,0.00013972,2]
[333805219,1722521441209,-556.83,0.00013972,2]
[333805220,1722521441221,-500.0,0.00013972,2]
[333805221,1722521441232,-500.0,0.00013972,2]